bitfinex/quotes_BTCUSD_20230118
["timestamp","ask_amount","ask_price","bid_price","bid_amount"]
[1674059070912,0.15,20669.0,20668.0,0.84355288]
[1674059071151,0.40696605,20673.0,20668.0,1.32408877]
[1674059071406,0.15879613,20672.0,20669.0,0.26611]
[1674059071659,0.67321351,20674.0,20671.0,0.2]
[1674059071899,0.67321351,20674.0,20672.0,0.26607]
[1674059072146,0.15,20673.0,20665.0,0.2]
[1674059072398,0.15,20673.0,20666.0,0.54825263]
[1674059072665,0.15,20673.0,20667.0,0.26613]
[1674059072931,0.15,20673.0,20663.0,0.03323491]
[1674059073223,0.15,20667.0,20663.0,0.03323491]
[1674059073471,0.15,20667.0,20662.0,0.51501772]
[1674059073954,0.08164,20669.0,20662.0,0.51501772]
[1674059073958,0.08164,20672.0,20663.0,0.03323491]
[1674059074192,0.08161,20678.0,20670.0,0.54825263]
[1674059074193,0.15,20677.0,20670.0,0.54825263]
[1674059074446,0.15,20677.0,20674.0,0.34825263]
[1674059074715,0.15,20682.0,20674.0,0.34825263]
[1674059074975,0.483534,20682.0,20674.0,0.34825263]
[1674059075485,0.38358205,20681.0,20674.0,0.34825263]
[1674059075743,0.319968,20680.0,20674.0,0.34825263]
[1674059076003,0.01457146,20683.0,20674.0,0.34825263]
[1674059076267,0.04702905,20681.0,20673.0,0.58941064]
[1674059076504,0.15,20678.0,20673.0,0.34825263]
[1674059077533,0.15,20678.0,20667.0,0.24168033]
[1674059077821,0.15,20672.0,20665.0,0.32424548]
[1674059078049,0.15,20672.0,20661.0,0.08247]
[1674059078050,0.321755,20671.0,20666.0,0.34825263]
[1674059078307,0.328457,20670.0,20664.0,0.34825263]
[1674059078563,0.15,20672.0,20661.0,0.52574473]
[1674059078864,0.15,20678.0,20667.0,0.6]
[1674059079091,0.15,20678.0,20671.0,0.34825263]
[1674059079588,0.327365,20677.0,20672.0,0.3]
[1674059079845,0.327321,20676.0,20672.0,0.3]
[1674059080147,0.15,20678.0,20672.0,0.3]
[1674059080364,0.315694,20677.0,20672.0,0.3]
[1674059080620,0.145,20678.0,20672.0,0.3]
[1674059080923,0.15,20681.0,20672.0,0.3]
[1674059081182,0.335975,20680.0,20672.0,0.59688942]
[1674059081469,0.15,20681.0,20672.0,0.59688942]
[1674059081470,0.33002,20679.0,20678.0,0.34825263]
[1674059081738,0.15,20681.0,20678.0,0.64825263]
[1674059081996,0.15,20681.0,20675.0,0.33070551]
[1674059081997,0.15,20681.0,20675.0,0.34825263]
[1674059082260,0.15,20681.0,20669.0,0.54240481]
[1674059082261,0.38211405,20680.0,20669.0,0.54240481]
[1674059082546,0.15,20677.0,20669.0,0.34825263]
[1674059082810,0.15,20677.0,20668.0,0.32372772]
[1674059083088,0.15,20677.0,20671.0,0.34825263]
[1674059083358,0.68066605,20677.0,20671.0,0.34825263]
[1674059083624,0.68066605,20677.0,20667.0,0.32372772]
[1674059083625,0.343382,20676.0,20667.0,0.32372772]
[1674059083877,0.343382,20676.0,20669.0,0.49325263]
[1674059083878,0.314769,20675.0,20669.0,0.49325263]
[1674059084166,0.31866,20674.0,20669.0,0.49325263]
[1674059084440,0.317026,20673.0,20669.0,0.49325263]
[1674059084704,0.53068705,20676.0,20669.0,0.15]
[1674059084705,0.314387,20672.0,20669.0,0.15]
[1674059084963,0.33713,20671.0,20666.0,0.15]
[1674059085219,0.33713,20671.0,20659.0,0.23262]
[1674059085220,0.325619,20670.0,20661.0,0.32372772]
[1674059085480,0.32812,20669.0,20660.0,0.34325263]
[1674059085755,0.483802,20670.0,20667.0,0.15]
[1674059085756,0.320265,20668.0,20667.0,0.15]
[1674059086012,0.320784,20668.0,20667.0,0.15]
[1674059086269,0.320784,20668.0,20660.0,0.34325263]
[1674059086270,0.804623,20668.0,20660.0,0.34325263]
[1674059086519,0.50888188,20666.0,20659.0,0.15]
[1674059086820,0.319209,20665.0,20659.0,0.15]
[1674059087061,0.309636,20664.0,20660.0,0.15]
[1674059087299,0.313176,20663.0,20657.0,0.02322794]
[1674059087555,0.82152,20662.0,20657.0,0.02322794]
[1674059087832,0.340701,20661.0,20657.0,0.02322794]
[1674059088114,0.314807,20660.0,20657.0,0.02322794]
[1674059088367,0.321869,20659.0,20657.0,0.02322794]
[1674059088620,0.321869,20659.0,20653.0,0.0012]
[1674059088621,0.813095,20658.0,20653.0,0.0012]
[1674059088884,0.319008,20657.0,20653.0,0.0012]
[1674059089144,0.324849,20656.0,20653.0,0.34445263]
[1674059089454,0.31913,20655.0,20653.0,0.34445263]
[1674059089734,0.15,20660.0,20653.0,0.34445263]
[1674059089986,0.484116,20657.0,20653.0,0.0012]
[1674059090245,0.812868,20656.0,20653.0,0.0012]
[1674059090494,0.331101,20655.0,20653.0,0.0012]
[1674059090766,0.820458,20654.0,20653.0,0.0012]
[1674059091028,0.336291,20654.0,20653.0,0.0012]
[1674059091537,0.486291,20654.0,20653.0,0.0012]
[1674059092795,0.336291,20654.0,20653.0,0.09532]
[1674059093044,0.15,20660.0,20653.0,0.0012]
[1674059093293,0.48406,20659.0,20653.0,0.34445263]
[1674059093578,0.32769,20658.0,20653.0,0.34445263]
[1674059093817,0.326474,20657.0,20653.0,0.0012]
[1674059094065,0.48406,20659.0,20653.0,0.0012]
[1674059094066,0.96839,20656.0,20653.0,0.0012]
[1674059094335,0.58476,20655.0,20653.0,0.0012]
[1674059094614,0.315945,20654.0,20653.0,0.0012]
[1674059094848,0.465945,20654.0,20653.0,0.0012]
[1674059095592,0.315945,20654.0,20653.0,0.0012]
[1674059095862,0.24207,20655.0,20653.0,0.34445263]
[1674059096132,0.15,20660.0,20653.0,0.34445263]
[1674059096387,0.24206,20656.0,20653.0,0.03443491]
[1674059096649,0.24206,20656.0,20655.0,0.31001772]
[1674059096901,0.15,20662.0,20655.0,0.61001772]
[1674059097199,0.65888188,20666.0,20661.0,0.34325263]
[1674059097468,0.24197,20664.0,20661.0,0.34325263]
[1674059097724,0.24196,20665.0,20662.0,0.3]
[1674059097979,0.50888188,20666.0,20662.0,0.3]
[1674059098228,0.50888188,20666.0,20664.0,0.34325263]
[1674059100542,0.50888188,20666.0,20665.0,0.3]
[1674059100788,0.50888188,20666.0,20665.0,0.568189]
[1674059101049,0.50888188,20666.0,20665.0,0.268189]
[1674059101329,0.50888188,20666.0,20664.0,0.34325263]
[1674059101562,0.50888188,20666.0,20656.0,0.8]
[1674059101824,0.09011,20665.0,20660.0,0.34325263]
[1674059102075,0.50888188,20666.0,20660.0,0.34325263]
[1674059102333,0.24201,20661.0,20659.0,0.34325263]
[1674059102586,0.50888188,20666.0,20659.0,0.34325263]
[1674059102587,0.75084188,20666.0,20659.0,0.34325263]
[1674059102823,0.50888188,20666.0,20660.0,0.268257]
[1674059103073,0.32788188,20666.0,20663.0,0.34325263]
[1674059103855,0.56982188,20666.0,20663.0,0.34325263]
[1674059104111,0.32788188,20666.0,20664.0,0.2682]
[1674059104359,0.32788188,20666.0,20664.0,0.6]
[1674059104617,0.32788188,20666.0,20665.0,0.268185]
[1674059104932,0.14673188,20666.0,20665.0,0.268185]
[1674059105133,1.188e-05,20666.0,20665.0,1.04048232]
[1674059105385,1.188e-05,20666.0,20665.0,0.718185]
[1674059105903,0.01113267,20666.0,20665.0,1.04048232]
[1674059106243,0.01113267,20666.0,20665.0,0.418185]
[1674059106455,0.05829267,20666.0,20665.0,0.268185]
[1674059106702,0.30025267,20666.0,20663.0,0.34325263]
[1674059106966,0.01113267,20666.0,20664.0,0.265696]
[1674059107228,0.01113267,20666.0,20663.0,0.34325263]
[1674059107513,0.01113267,20666.0,20664.0,0.265698]
[1674059107787,3.267e-05,20666.0,20665.0,0.15]
[1674059108038,0.00332298,20675.0,20665.0,0.393352]
[1674059108299,0.00332298,20675.0,20666.0,0.32229732]
[1674059108550,0.00338488,20683.0,20674.0,1.32515263]
[1674059108812,0.96756558,20682.0,20675.0,0.62170132]
[1674059109093,0.24508488,20687.0,20676.0,0.5637119]
[1674059109367,0.96740215,20686.0,20681.0,0.34325263]
[1674059109596,0.00338488,20687.0,20682.0,0.543104]
[1674059109871,0.00338488,20687.0,20683.0,0.243084]
[1674059110148,0.0014893,20688.0,20686.0,0.34325263]
[1674059110415,0.0014893,20688.0,20686.0,0.08751538]
[1674059111955,0.24164,20692.0,20686.0,0.08751538]
[1674059112200,0.24164,20692.0,20682.0,0.15]
[1674059112201,0.01641242,20685.0,20682.0,0.4707074]
[1674059112450,0.01641242,20685.0,20678.0,0.15]
[1674059112451,0.323458,20684.0,20678.0,0.15]
[1674059112773,0.25814242,20685.0,20676.0,0.31626295]
[1674059112962,0.01641242,20685.0,20677.0,0.51998084]
[1674059113205,0.01641242,20685.0,20681.0,0.2]
[1674059113724,0.01641242,20685.0,20679.0,0.31998084]
[1674059113983,0.01641242,20685.0,20680.0,0.3]
[1674059114240,0.01641242,20685.0,20680.0,0.45]
[1674059114479,0.01641242,20685.0,20680.0,0.15]
[1674059114737,0.01641242,20685.0,20677.0,0.15]
[1674059114992,0.24177,20681.0,20677.0,0.15]
[1674059115285,0.33972,20680.0,20675.0,0.15]
[1674059115490,0.01641242,20685.0,20672.0,0.41269084]
[1674059115750,0.24175,20683.0,20673.0,0.31998084]
[1674059115993,0.24177,20682.0,20673.0,0.46998084]
[1674059116251,0.24182,20677.0,20673.0,0.15]
[1674059116522,0.483506,20683.0,20673.0,0.15]
[1674059116803,0.24184,20675.0,20667.0,1.21]
[1674059117041,0.46306683,20682.0,20671.0,0.09286]
[1674059117282,0.46306683,20682.0,20672.0,0.31998084]
[1674059117283,0.24182,20677.0,20672.0,0.31998084]
[1674059117544,0.24286,20682.0,20670.0,0.33932137]
[1674059117810,0.15,20682.0,20671.0,0.01934053]
[1674059118060,0.15,20683.0,20672.0,0.01934053]
[1674059118303,0.25814242,20685.0,20675.0,0.7912]
[1674059118304,0.01641242,20685.0,20675.0,0.7912]
[1674059118550,0.01641242,20685.0,20676.0,0.31998084]
[1674059118806,0.01641242,20685.0,20676.0,0.31934053]
[1674059119054,0.01641242,20685.0,20678.0,0.2]
[1674059119319,0.01641242,20685.0,20679.0,0.31998084]
[1674059119569,0.01641242,20685.0,20681.0,0.15]
[1674059119818,0.00586982,20685.0,20680.0,0.3]
[1674059120065,0.05891399,20689.0,20681.0,0.31998084]
[1674059120377,0.15,20691.0,20678.0,0.09352]
[1674059120584,0.09352,20689.0,20677.0,0.09352]
[1674059120826,0.330267,20688.0,20675.0,1.37889]
[1674059121074,0.24173,20684.0,20676.0,0.31817755]
[1674059121332,0.31873012,20689.0,20676.0,0.31817755]
[1674059121597,0.15,20689.0,20676.0,0.4374]
[1674059121839,0.15,20689.0,20678.0,0.2874]
[1674059122088,0.39167,20690.0,20678.0,0.2874]
[1674059122089,0.15,20690.0,20682.0,0.4874]
[1674059122367,0.24167,20690.0,20683.0,0.60613012]
[1674059122622,0.24167,20690.0,20684.0,0.3]
[1674059122891,0.245,20691.0,20682.0,0.61814042]
[1674059123143,0.15,20691.0,20683.0,0.31814042]
[1674059123389,0.15,20693.0,20684.0,0.3]
[1674059123665,0.14,20693.0,20685.0,0.55065213]
[1674059123913,0.24163,20693.0,20686.0,0.56330705]
[1674059124160,0.24163,20693.0,20685.0,0.15]
[1674059124429,0.326698,20692.0,20684.0,0.3]
[1674059124684,0.00371789,20694.0,20687.0,0.2874]
[1674059124927,0.00371789,20694.0,20685.0,0.31814042]
[1674059124928,0.00371789,20694.0,20688.0,0.90554042]
[1674059125177,0.00371789,20694.0,20688.0,0.5874]
[1674059125501,0.00371789,20694.0,20686.0,0.31217628]
[1674059125716,0.00371789,20694.0,20687.0,0.2874]
[1674059125975,0.00371789,20694.0,20688.0,0.59677463]
[1674059126238,0.00371789,20694.0,20690.0,0.2874]
[1674059126498,0.00371789,20694.0,20685.0,0.15]
[1674059126814,0.00371789,20694.0,20686.0,0.59859621]
[1674059127066,0.00371789,20694.0,20687.0,0.31113641]
[1674059127321,0.00371789,20694.0,20686.0,0.31122158]
[1674059127579,0.00371789,20694.0,20687.0,0.15]
[1674059127826,0.00371789,20694.0,20688.0,0.60491818]
[1674059128110,0.00371789,20694.0,20690.0,0.2874]
[1674059128347,0.00371789,20694.0,20688.0,0.59251818]
[1674059128585,0.24533789,20694.0,20687.0,0.15]
[1674059128866,0.00371789,20694.0,20687.0,0.7374]
[1674059129391,0.00371789,20694.0,20689.0,0.4874]
[1674059129675,0.00371789,20694.0,20691.0,0.2874]
[1674059129934,0.2053346,20700.0,20693.0,0.2874]
[1674059130199,0.2053346,20700.0,20692.0,0.5]
[1674059130200,0.2053346,20700.0,20694.0,0.3]
[1674059131001,0.0115496,20699.0,20694.0,0.3]
[1674059131255,0.0115496,20699.0,20693.0,0.3]
[1674059131513,0.0115496,20699.0,20692.0,0.15]
[1674059131764,0.0115496,20699.0,20697.0,0.2]
[1674059132333,8.42e-05,20700.0,20697.0,0.41063917]
[1674059132598,8.42e-05,20700.0,20697.0,0.51315232]
[1674059132860,8.42e-05,20700.0,20698.0,0.15]
[1674059133136,0.09522816,20696.0,20694.0,0.15]
[1674059133386,0.09516156,20696.0,20694.0,0.345]
[1674059133654,8.42e-05,20700.0,20694.0,0.345]
[1674059133903,8.42e-05,20700.0,20695.0,0.6538]
[1674059134166,8.42e-05,20700.0,20697.0,0.2]
[1674059134679,8.42e-05,20700.0,20699.0,0.2]
[1674059134956,0.01403643,20708.0,20699.0,0.71421542]
[1674059135211,0.01403643,20708.0,20704.0,0.5038]
[1674059135468,0.01403643,20708.0,20707.0,0.2]
[1674059135746,0.01045114,20706.0,20705.0,0.3]
[1674059136581,0.01045114,20706.0,20704.0,0.45]
[1674059136827,0.01045114,20706.0,20704.0,0.8038]
[1674059137082,0.01045114,20706.0,20702.0,0.26995738]
[1674059137344,0.01045114,20706.0,20700.0,0.31724824]
[1674059137599,0.24146,20708.0,20699.0,2.99741542]
[1674059137855,0.46922539,20713.0,20700.0,0.22951737]
[1674059137856,0.24144,20710.0,20700.0,0.22951737]
[1674059138111,0.24141,20712.0,20700.0,0.22951737]
[1674059138382,0.24141,20712.0,20699.0,0.01041542]
[1674059138383,0.00480392,20712.0,20699.0,0.01041542]
[1674059138933,0.24148,20706.0,20699.0,0.01041542]
[1674059139180,0.43200753,20711.0,20699.0,0.01041542]
[1674059139441,1.11660354,20710.0,20699.0,0.01041542]
[1674059139716,0.96660354,20709.0,20699.0,0.01041542]
[1674059139975,0.23136773,20703.0,20699.0,0.01041542]
[1674059140252,0.632879,20710.0,20694.0,1.63563951]
[1674059140253,0.04128458,20699.0,20694.0,1.63563951]
[1674059140518,0.04128458,20699.0,20695.0,0.15]
[1674059140790,0.04128458,20699.0,20694.0,0.00983951]
[1674059141057,0.04128458,20699.0,20692.0,0.15]
[1674059141058,0.24159,20697.0,20692.0,0.15]
[1674059141346,0.24157,20698.0,20692.0,0.15]
[1674059141612,0.24164,20693.0,20689.0,0.31724824]
[1674059141872,0.24164,20693.0,20685.0,0.01878778]
[1674059142150,0.09771,20698.0,20689.0,0.15]
[1674059142151,0.31626299,20698.0,20689.0,0.15]
[1674059142385,0.24168,20690.0,20685.0,0.01878778]
[1674059142649,0.359227,20689.0,20685.0,0.01878778]
[1674059142909,0.317807,20688.0,20685.0,0.01878778]
[1674059143167,0.24167,20689.0,20685.0,0.01878778]
[1674059143673,0.09716,20691.0,20685.0,0.01878778]
[1674059143958,0.24168,20689.0,20685.0,0.01878778]
[1674059144224,0.09715,20692.0,20685.0,0.01878778]
[1674059144225,0.333577,20688.0,20685.0,0.01878778]
[1674059144480,0.15,20693.0,20685.0,0.01878778]
[1674059144982,0.15,20696.0,20685.0,0.01878778]
[1674059145272,0.24164,20692.0,20685.0,0.01878778]
[1674059145534,0.24726,20696.0,20685.0,0.16878778]
[1674059145535,0.15,20696.0,20685.0,0.16878778]
[1674059145780,0.01664514,20695.0,20685.0,0.48603602]
[1674059146037,0.01664514,20695.0,20686.0,0.61724824]
[1674059146290,0.01664514,20695.0,20687.0,0.31724824]
[1674059146576,0.01664514,20695.0,20688.0,0.3]
[1674059146839,0.01664514,20695.0,20689.0,0.31724824]
[1674059147092,0.01149846,20695.0,20690.0,0.3]
[1674059147347,0.01149846,20695.0,20692.0,0.5038]
[1674059147595,0.04128458,20699.0,20695.0,0.00016895]
[1674059147847,0.04128458,20699.0,20695.0,0.30016895]
[1674059148115,0.04128458,20699.0,20695.0,0.15016895]
[1674059148353,0.04128458,20699.0,20695.0,0.00016895]
[1674059148601,0.24157,20698.0,20695.0,0.00016895]
[1674059148865,0.342099,20697.0,20695.0,0.00016895]
[1674059149132,0.04702905,20698.0,20695.0,0.00016895]
[1674059149454,0.338433,20697.0,20695.0,0.00016895]
[1674059149671,0.24157,20698.0,20695.0,0.00016895]
[1674059149672,0.31877,20696.0,20695.0,0.00016895]
[1674059150188,0.13933458,20699.0,20695.0,0.00016895]
[1674059150456,1.27802794,20698.0,20695.0,0.00016895]
[1674059150725,0.314404,20697.0,20695.0,0.00016895]
[1674059150969,0.310487,20696.0,20695.0,0.00016895]
[1674059151478,0.04128458,20699.0,20695.0,0.04712895]
[1674059152259,0.04128458,20699.0,20696.0,9.215e-05]
[1674059152514,0.04128458,20699.0,20695.0,0.00016895]
[1674059153035,0.04128458,20699.0,20696.0,0.33185]
[1674059153768,0.04128458,20699.0,20697.0,0.3]
[1674059154026,0.04128458,20699.0,20695.0,0.00016895]
[1674059155316,0.03591917,20699.0,20692.0,0.24867]
[1674059155569,0.03591917,20699.0,20692.0,0.54630279]
[1674059155854,0.03591917,20699.0,20692.0,0.15]
[1674059156074,0.03591917,20699.0,20693.0,0.319742]
[1674059156338,0.03591917,20699.0,20694.0,0.162156]
[1674059156606,0.03591917,20699.0,20695.0,0.319709]
[1674059156893,0.03591917,20699.0,20696.0,0.60942308]
[1674059157125,0.03591917,20699.0,20697.0,0.319676]
[1674059157365,0.03591917,20699.0,20692.0,0.15]
[1674059157366,0.02823855,20699.0,20692.0,0.15]
[1674059157625,0.02823855,20699.0,20691.0,0.3190132]
[1674059157884,1.28649235,20698.0,20689.0,0.31907056]
[1674059158211,1.28649235,20698.0,20687.0,0.31907056]
[1674059158212,0.15,20696.0,20687.0,0.31907056]
[1674059158403,0.15,20696.0,20685.0,0.01878778]
[1674059158404,0.96675205,20695.0,20685.0,0.01878778]
[1674059158667,0.24169,20688.0,20685.0,0.01878778]
[1674059158924,0.321186,20687.0,20685.0,0.01878778]
[1674059159181,0.315404,20686.0,20685.0,0.01878778]
[1674059159943,0.215404,20686.0,20685.0,0.01878778]
[1674059160962,0.215404,20686.0,20685.0,0.01860381]
[1674059161209,1.1825364,20686.0,20685.0,0.01860381]
[1674059161462,1.2998364,20686.0,20685.0,0.01860381]
[1674059161785,1.2998364,20686.0,20685.0,3.81e-06]
[1674059162146,1.2998364,20686.0,20679.0,0.01996703]
[1674059162148,1.1825364,20686.0,20679.0,0.01996703]
[1674059162410,0.24176,20683.0,20679.0,0.01996703]
[1674059162656,1.29583433,20685.0,20679.0,0.01996703]
[1674059162657,0.329296,20682.0,20679.0,0.01996703]
[1674059162893,0.09943,20685.0,20679.0,0.01996703]
[1674059162894,0.329107,20681.0,20679.0,0.01996703]
[1674059163144,0.310285,20680.0,20679.0,0.01996703]
[1674059164630,0.15,20690.0,20679.0,0.01996703]
[1674059164882,0.96716491,20689.0,20680.0,0.32784891]
[1674059165125,0.15,20692.0,20681.0,0.32063542]
[1674059165379,0.15,20693.0,20682.0,0.3]
[1674059165380,0.96706659,20691.0,20682.0,0.3]
[1674059165626,0.15,20693.0,20683.0,0.32063542]
[1674059165627,0.96706659,20690.0,20683.0,0.32063542]
[1674059165874,0.04702905,20695.0,20684.0,0.3]
[1674059166124,0.96164262,20694.0,20685.0,0.4703164]
[1674059166369,0.311195,20693.0,20686.0,0.32063542]
[1674059166623,0.318824,20692.0,20687.0,0.3]
[1674059166883,0.315823,20691.0,20687.0,0.3]
[1674059167209,0.19702905,20696.0,20687.0,0.3]
[1674059167389,0.15,20696.0,20688.0,0.32063542]
[1674059167633,0.335699,20695.0,20689.0,0.3]
[1674059167874,0.02823855,20699.0,20689.0,0.3]
[1674059168128,0.02823855,20699.0,20690.0,0.32063542]
[1674059168670,0.02823855,20699.0,20691.0,0.29784984]
[1674059168907,0.02823855,20699.0,20692.0,0.32063542]
[1674059169160,0.02823855,20699.0,20690.0,0.32063542]
[1674059169417,0.326626,20698.0,20691.0,0.2874]
[1674059169685,0.02823855,20699.0,20693.0,0.2874]
[1674059170172,0.02823855,20699.0,20691.0,0.47063542]
[1674059170415,0.02823855,20699.0,20689.0,0.60803542]
[1674059170677,0.322553,20698.0,20687.0,0.32063542]
[1674059170958,0.1178,20696.0,20686.0,0.32063542]
[1674059171159,0.483246,20694.0,20682.0,0.42074542]
[1674059171406,0.10011,20698.0,20683.0,0.60803542]
[1674059171664,0.26079784,20699.0,20685.0,0.2874]
[1674059171665,0.02823855,20699.0,20685.0,0.2874]
[1674059171911,0.17823855,20699.0,20687.0,0.2874]
[1674059172147,0.17823855,20699.0,20688.0,0.60803542]
[1674059172388,0.323027,20698.0,20690.0,0.2874]
[1674059172639,0.323652,20697.0,20691.0,0.5874]
[1674059172890,0.02823855,20699.0,20692.0,0.32063542]
[1674059173140,0.02823855,20699.0,20693.0,0.5874]
[1674059173372,0.02823855,20699.0,20695.0,0.2874]
[1674059173644,0.02823855,20699.0,20697.0,0.2874]
[1674059173864,0.02823855,20699.0,20698.0,0.90952]
[1674059174612,0.02823855,20699.0,20698.0,0.5874]
[1674059174879,0.02823855,20699.0,20698.0,0.914387]
[1674059175144,0.02823855,20699.0,20698.0,0.5874]
[1674059175417,0.02823855,20699.0,20698.0,0.62573]
[1674059175652,0.02323855,20699.0,20698.0,0.91313]
[1674059175907,0.02323855,20699.0,20698.0,0.3]
[1674059176163,0.00404303,20704.0,20698.0,0.15]
[1674059176401,0.00404303,20704.0,20694.0,0.32063542]
[1674059176650,0.34833903,20704.0,20699.0,0.0012]
[1674059177137,0.24151,20703.0,20699.0,0.0012]
[1674059177415,0.341424,20702.0,20699.0,0.0012]
[1674059177678,0.483026,20703.0,20699.0,0.0012]
[1674059177679,1.284126,20701.0,20699.0,0.0012]
[1674059177929,0.321057,20700.0,20699.0,0.0012]
[1674059178905,0.712627,20700.0,20699.0,0.0012]
[1674059179395,0.712637,20700.0,20699.0,0.0012]
[1674059179637,0.471057,20700.0,20699.0,0.0012]
[1674059180881,0.471057,20700.0,20699.0,0.04816]
[1674059181129,0.321057,20700.0,20699.0,0.04816]
[1674059181376,0.00404303,20704.0,20699.0,0.04816]
[1674059181867,0.32558503,20704.0,20699.0,0.33556]
[1674059182113,0.00404303,20704.0,20701.0,0.2874]
[1674059182431,0.00404303,20704.0,20699.0,0.32183542]
[1674059182651,0.01252452,20703.0,20700.0,0.3]
[1674059182900,0.01252452,20703.0,20700.0,0.01]
[1674059184136,0.34176552,20703.0,20700.0,0.01]
[1674059184399,0.01252452,20703.0,20700.0,0.01]
[1674059184645,0.01252452,20703.0,20700.0,0.336074]
[1674059184883,0.00404303,20704.0,20702.0,0.2874]
[1674059185140,0.00404303,20704.0,20703.0,0.613426]
[1674059185638,0.00404303,20704.0,20703.0,0.913426]
[1674059185883,0.00480392,20708.0,20704.0,0.15]
[1674059186134,0.00480392,20708.0,20705.0,0.71362342]
[1674059186378,0.00480392,20708.0,20707.0,0.2874]
[1674059186624,0.00480392,20708.0,20707.0,0.692976]
[1674059186878,0.00480392,20708.0,20707.0,0.392976]
[1674059187128,0.0042379,20711.0,20707.0,0.692976]
[1674059187378,0.0042379,20711.0,20709.0,0.2874]
[1674059187617,3.79e-05,20711.0,20710.0,1.01468142]
[1674059187864,3.79e-05,20711.0,20710.0,0.394046]
[1674059188109,3.79e-05,20711.0,20710.0,0.694046]
[1674059188357,0.15,20719.0,20712.0,0.2874]
[1674059188605,0.00451406,20721.0,20713.0,0.94539942]
[1674059188848,0.00451406,20721.0,20715.0,0.2874]
[1674059189088,0.00451406,20721.0,20714.0,0.32063542]
[1674059189089,0.00451406,20721.0,20716.0,0.3]
[1674059189328,0.00451406,20721.0,20715.0,0.2874]
[1674059189575,0.00451406,20721.0,20716.0,0.5874]
[1674059190007,0.00451406,20721.0,20717.0,0.2582529]
[1674059190261,0.04,20728.0,20718.0,1.19021838]
[1674059190529,0.04,20728.0,20720.0,0.2874]
[1674059190792,0.04,20728.0,20719.0,0.40725742]
[1674059190793,0.04,20728.0,20722.0,0.2874]
[1674059191083,0.04,20728.0,20722.0,0.2025828]
[1674059191334,0.04,20728.0,20722.0,0.20119048]
[1674059191595,0.04,20728.0,20723.0,0.3]
[1674059192106,0.04,20728.0,20721.0,0.2874]
[1674059192402,0.04,20728.0,20717.0,0.27099578]
[1674059192403,0.01793,20727.0,20717.0,0.27099578]
[1674059192668,0.04,20728.0,20718.0,0.3]
[1674059192927,0.763674,20728.0,20717.0,0.3]
[1674059193189,0.318034,20727.0,20717.0,0.15]
[1674059193450,0.640244,20728.0,20715.0,0.28143707]
[1674059193451,0.1178,20725.0,20715.0,0.28143707]
[1674059193716,0.315501,20724.0,20715.0,0.01]
[1674059193999,0.305109,20723.0,20715.0,0.01]
[1674059194270,0.335065,20722.0,20715.0,0.01]
[1674059194536,0.15,20723.0,20715.0,0.01]
[1674059194537,0.145,20723.0,20716.0,0.2874]
[1674059194792,0.04,20728.0,20718.0,0.2874]
[1674059195055,0.04,20728.0,20720.0,0.2874]
[1674059195341,0.04,20728.0,20722.0,0.2874]
[1674059195624,0.04,20728.0,20723.0,0.624171]
[1674059195892,0.04,20728.0,20724.0,0.106969]
[1674059196151,0.04,20728.0,20725.0,0.324138]
[1674059196527,0.04,20728.0,20726.0,0.406957]
[1674059196769,0.04,20728.0,20727.0,0.611505]
[1674059197030,0.04,20728.0,20727.0,1.061505]
[1674059197518,0.15455016,20737.0,20727.0,1.565305]
[1674059197958,0.00455016,20737.0,20729.0,0.7912]
[1674059198203,0.00455016,20737.0,20731.0,0.2874]
[1674059198467,0.00455016,20737.0,20733.0,0.2874]
[1674059198724,0.00455016,20737.0,20735.0,0.2874]
[1674059198992,0.01386085,20736.0,20733.0,0.2874]
[1674059199268,0.01386085,20736.0,20735.0,0.2874]
[1674059199513,0.01386085,20736.0,20735.0,0.701957]
[1674059200527,0.00455016,20737.0,20735.0,1.205757]
[1674059200775,0.00455016,20737.0,20736.0,0.616292]
[1674059201041,0.00455016,20737.0,20736.0,0.903692]
[1674059201288,0.15986709,20745.0,20736.0,1.407492]
[1674059201542,0.15986709,20745.0,20737.0,0.38501616]
[1674059201787,0.15436709,20745.0,20738.0,0.3]
[1674059202051,0.15436709,20745.0,20739.0,0.2874]
[1674059202299,0.15436709,20745.0,20741.0,0.2874]
[1674059202546,0.15436709,20745.0,20740.0,0.600449]
[1674059202547,0.15436709,20745.0,20743.0,0.2874]
[1674059202800,0.15,20746.0,20744.0,0.300388]
[1674059203083,1.0,20747.0,20745.0,0.717658]
[1674059203331,1.0,20747.0,20746.0,0.300356]
[1674059203580,0.15,20749.0,20746.0,0.60044793]
[1674059203829,0.15,20749.0,20747.0,0.430242]
[1674059204103,0.0001,20750.0,20744.0,0.32244866]
[1674059204336,0.332692,20749.0,20738.0,0.75805209]
[1674059204591,0.03702905,20748.0,20738.0,0.44895921]
[1674059204840,0.482032,20746.0,20744.0,0.15]
[1674059205094,0.0001,20750.0,20744.0,0.15]
[1674059205340,0.0001,20750.0,20745.0,0.334409]
[1674059205599,0.0001,20750.0,20746.0,0.328349]
[1674059205852,0.0001,20750.0,20747.0,0.096309]
[1674059206118,0.0001,20750.0,20748.0,0.310922]
[1674059206380,0.0001,20750.0,20749.0,0.108692]
[1674059206946,0.1475,20757.0,20749.0,0.94414234]
[1674059207166,0.1475,20757.0,20750.0,1.29826485]
[1674059207420,0.13738,20757.0,20751.0,0.383677]
[1674059207668,0.13738,20757.0,20751.0,0.3]
[1674059208172,0.13738,20757.0,20748.0,0.96015985]
[1674059208443,0.13738,20757.0,20748.0,0.32108982]
[1674059208444,0.1273134,20757.0,20748.0,0.32108982]
[1674059208693,0.24089,20757.0,20748.0,0.32108982]
[1674059208945,0.24089,20757.0,20748.0,0.67275985]
[1674059209248,0.00598459,20759.0,20749.0,0.63998204]
[1674059209491,0.00598459,20759.0,20750.0,0.65886282]
[1674059209728,0.00598459,20759.0,20751.0,0.37788282]
[1674059209972,0.00598459,20759.0,20752.0,0.32108982]
[1674059210221,0.00598459,20759.0,20753.0,0.320928]